Cogmind - Beta 11.1 @@@ ROGUE MODE // 2022.05.27 @ 10:38:32 Player: btmk16 Result: Destroyed by D-63 Destroyer with Heavy Rocket Launcher Performance ------------- Evolutions (6) 3000 Regions Visited (13) 2600 Robots Destroyed (179) 895 Value Destroyed (6807) 6807 Prototype IDs (35) 700 Alien Tech Used (0) 0 Bonus (762) 762 TOTAL SCORE: 14764 Bonus ------- High Alert Combat Kills 110 Follower Combat Kills 370 Aligned with FarCom 300 Friendly Fire -18 Cogmind --------- Core Integrity 0/1150 Matter 189/300 Energy 21/100 System Corruption 38% Temperature Cool (3) Movement Flying (22) Location -4/Armory Parts ------- > --- POWER (1) -------- (None) > --- PROPULSION (6) --- Advanced Surge Thruster > --- UTILITY (8) ------ (None) > --- WEAPON (4) ------- Spear > --- INVENTORY (5) ---- Advanced Drone Bay (0/2) Enhanced Quantum Rifle Coil Gun Mini Assault Cannon Peak State ------------ > --- POWER ------------ Quantum Reactor > --- PROPULSION ------- Improved Heavy Treads Improved Heavy Treads Advanced Heavy Siege Treads > --- UTILITY ---------- Advanced Heat Sink Advanced Heat Sink High-capacity Storage Unit High-capacity Matter Pod Advanced Targeting Computer Improved Phase Shifter Experimental Weapon Shielding Hacking Suite > --- WEAPON ----------- Enhanced Quantum Rifle Enhanced Nova Cannon Coil Gun Power Sword > --- INVENTORY -------- Antimatter Reactor Light Antimatter Reactor Light Antimatter Reactor Light Antimatter Reactor Flexi-carbon Leg Flexi-carbon Leg Flexi-carbon Leg Matter Compressor Cloaking Device Improved Core Shielding Mini Drone Bay Advanced Drone Bay Variable Charge Gun Latent Energy Streamer High-powered Shotgun Coil Gun Mini Assault Cannon Mini Assault Cannon Power Maul [Rating: 125] Favorites ----------- Power Cooled Ion Engine Engine Cooled Ion Engine Power Core Neutrino Core Reactor Fusion Reactor Propulsion Light Treads Treads Light Treads Leg Flexi-carbon Leg Wheel Compact Wheel Flight Unit VTOL Module Utility High-capacity Storage Unit Device Improved Cooling System Storage High-capacity Storage Unit Processor Advanced Targeting Computer Hackware Hacking Suite Protection Improved Heavy Armor Plating Weapon Autogun Energy Gun Improved Medium Laser Energy Cannon Cooled Plasma Cannon Ballistic Gun Autogun Ballistic Cannon Mini Assault Cannon Launcher Heavy Rocket Launcher Impact Weapon Power Maul Slashing Weapon Scythe Piercing Weapon Spear Build | -11 -10 -10 -10 -9 -8 -8 -7 -6 -5 -5 -5 -4 -4 ------- Run | Scr Mat Min Exi Min Mat Sto Fac Fac Fac Upp Upp Fac Arm Slots Evolved 12 | . . . . . 4 . 2 2 2 . . 2 . Power . | . . . . . . . . . . . . . . Propulsion 4 | . . . . . 1 . 1 . 1 . . 1 . Utility 6 | . . . . . 2 . 1 2 1 . . . . Weapon 2 | . . . . . 1 . . . . . . 1 . Parts Attached 231 | . 15 2 . 1 7 23 24 36 9 20 2 12 80 Power 21 | . 2 1 . 1 . 1 2 1 1 2 . . 10 Engine 8 | . 2 1 . 1 . 1 2 1 . . . . . Core 1 | . . . . . . . . . 1 . . . . Reactor 12 | . . . . . . . . . . 2 . . 10 Propulsion 62 | . 4 1 . . 3 4 7 6 4 3 . 1 29 Treads 34 | . 1 . . . 3 2 7 6 1 3 . 1 10 Leg 18 | . 1 . . . . . . . . . . . 17 Wheel 8 | . 2 1 . . . 2 . . 3 . . . . Hover . | . . . . . . . . . . . . . . Flight 2 | . . . . . . . . . . . . . 2 Utility 55 | . 6 . . . 2 5 8 8 1 9 2 1 13 Device 32 | . 2 . . . 1 2 5 4 1 7 2 1 7 Storage 7 | . 3 . . . . . . 3 . . . . 1 Processor 4 | . 1 . . . . 1 . 1 . . . . 1 Hackware 1 | . . . . . . . . . . . . . 1 Protection 11 | . . . . . 1 2 3 . . 2 . . 3 Artifact . | . . . . . . . . . . . . . . Weapon 93 | . 3 . . . 2 13 7 21 3 6 . 10 28 Energy Gun 27 | . . . . . . 1 1 7 . 4 . 2 12 Energy Cannon 5 | . . . . . . 1 . 2 . . . . 2 Ballistic Gun 24 | . 3 . . . 2 6 2 4 1 . . . 6 Ballistic Cannon 9 | . . . . . . . 2 . 1 . . 3 3 Launcher 5 | . . . . . . . . . . 1 . 2 2 Special Weapon . | . . . . . . . . . . . . . . Impact Weapon 19 | . . . . . . 4 2 8 . 1 . 3 1 Slashing Weapon 3 | . . . . . . 1 . . 1 . . . 1 Piercing Weapon 1 | . . . . . . . . . . . . . 1 Special Melee Weapon . | . . . . . . . . . . . . . . Unidentified Prototypes 10 | . . . . . 1 2 2 . 1 1 . . 3 Corrupted Parts 3 | . . . . . . . . . . . . . 3 System Corruption 23 | . . . . . . . . . . . . . 23 Parts Lost 70 | . 2 2 . . . 7 2 7 3 2 . 1 44 Power 6 | . 1 1 . . . . . 1 . . . . 3 Propulsion 27 | . . 1 . . . 3 1 1 3 . . . 18 Utility 20 | . 1 . . . . 2 1 1 . 2 . 1 12 Weapon 17 | . . . . . . 2 . 4 . . . . 11 Highest Loss Streak 14 | . 2 1 . . . 3 1 2 3 1 . 1 14 To Critical Strikes 2 | . . . . . . . . . . . . . 2 Average Slot Usage (%) 92 | . 97 97 100 100 97 99 99 99 92 91 88 83 64 Engine 6 | . 14 12 14 14 9 9 7 6 1 . . . . Reactor 1 | . . . . . . . . . . 3 5 5 4 Treads 17 | . 8 14 14 14 17 18 23 25 18 13 17 20 8 Leg 1 | . 5 . . . . . . . . . . . 7 Wheel 6 | . 12 13 14 14 9 8 6 . 3 11 5 . . Device 11 | . 4 . . . 8 13 15 18 17 12 15 15 9 Storage 10 | . 14 14 14 14 9 9 7 10 17 14 11 9 6 Processor 8 | . 8 14 14 14 9 9 7 12 11 5 5 5 6 Protection 3 | . . . . . 8 4 6 3 . 5 6 5 1 Energy Gun 4 | . 7 . . . . . 3 5 9 3 5 9 5 Energy Cannon 1 | . . . . . . 3 7 2 . . . . . Ballistic Gun 10 | . 19 28 28 28 26 16 3 5 1 5 5 5 3 Ballistic Cannon 2 | . . . . . . . 4 2 3 5 5 4 2 Impact Weapon 1 | . . . . . . 3 . 2 1 . . 1 1 Naked Turns 42 | . . . . . . . . . . . . . 42 Heaviest Build 99 | 13 51 51 51 56 63 68 79 81 86 99 94 95 96 Greatest Support 230 | 20 26 10 10 10 10 40 80 100 120 127 125 200 230 Greatest Overweight (x) 6 | . 3 5 5 5 6 6 4 1 5 2 . . 3 Average Overweight (x) 2 | . 1 4 5 5 5 4 3 . 2 1 . . . Largest Inventory Capacity 20 | . 20 20 20 20 20 20 20 20 20 20 20 20 20 Average Capacity 19 | . 15 20 20 20 20 20 20 20 20 20 20 20 17 Most Carried 20 | . 15 15 16 20 20 20 20 20 20 20 20 20 20 Average Carried 17 | . 13 12 15 19 18 18 19 19 19 19 20 19 14 Final Capacity 20 | 8 20 20 20 20 20 20 20 20 20 20 20 20 5 Final Carried 20 | 6 15 15 16 20 20 16 20 20 20 20 20 19 5 Class Distribution -------------------- 40% | Mutant 10% | Skirmisher 9% | Gunner 7% | Scavenger-Mutant 6% | Scavenger-Skirmisher 4% | Tank 3% | Commander-Mutant 3% | Scavenger-Tank 3% | Scavenger-Gunner 3% | Derelict-Assassin Dominant Class ---------------- Mutant | -10/Materials Mutant | -10/Mines Mutant | -10/Exiles Mutant | -9/Mines Skirmisher | -8/Materials Mutant | -8/Storage Skirmisher | -7/Factory Mutant | -6/Factory Gunner | -5/Factory Scavenger-Gunner | -5/Upper Caves Scavenger-Skirmisher | -5/Upper Caves Derelict-Skirmisher | -4/Factory Scavenger-Mutant | -4/Armory Resources | -11 -10 -10 -10 -9 -8 -8 -7 -6 -5 -5 -5 -4 -4 ----------- Run | Scr Mat Min Exi Min Mat Sto Fac Fac Fac Upp Upp Fac Arm Matter Collected 5637 | 200 283 179 . 60 183 583 539 842 354 464 60 578 1312 Remotely . | . . . . . . . . . . . . . . Salvage Created 7493 | . 385 144 . . 239 1062 920 1997 292 321 99 241 1793 Parts 316 | . 31 8 . . 15 44 54 51 20 20 5 11 57 Haulers Intercepted 8 | . 2 . . . . 4 2 . . . . . . Recyclers Shooed 5 | . . . . . . 1 2 1 1 . . . . Parts Field Recycled . | . . . . . . . . . . . . . . Retrieved Matter . | . . . . . . . . . . . . . . Parts Self-Destructed 29 | . . . . . . . . . . 24 5 . . Prevented . | . . . . . . . . . . . . . . Kills | -11 -10 -10 -10 -9 -8 -8 -7 -6 -5 -5 -5 -4 -4 ------- Run | Scr Mat Min Exi Min Mat Sto Fac Fac Fac Upp Upp Fac Arm Combat Hostiles Destroyed 140 | . 9 7 . . 7 16 18 25 3 11 4 2 38 Melee 3 | . . . . . . . . . . . . . 3 Guns 89 | . 9 7 . . 7 15 3 15 1 7 4 2 19 Cannons 36 | . . . . . . 1 15 9 2 2 . . 7 AOE 8 | . . . . . . . . . . 2 . . 6 Classes Destroyed 17 | . 6 2 . . 1 3 3 . . 1 . . 1 Worker 8 | . . . . . . . 1 4 3 . . . . Builder 9 | . 1 . . . . . 1 3 1 . . 3 . Tunneler 1 | . 1 . . . . . . . . . . . . Hauler 8 | . 2 . . . . 4 2 . . . . . . Recycler 13 | . . . . . . 1 2 8 1 . . 1 . Watcher 1 | . 1 . . . . . . . . . . . . Swarmer 43 | . 6 3 . . 3 1 6 7 . 8 4 . 5 Saboteur 2 | . . . . . . . . . . . . . 2 Grunt 42 | . 3 2 . . 3 7 5 9 . 1 . . 12 Brawler 1 | . . . . . . 1 . . . . . . . Duelist 8 | . . . . . . 2 . 2 . . . . 4 Sentry 14 | . . . . . 1 5 2 2 1 1 . . 2 Demolisher 2 | . . 1 . . . . . . . . . . 1 Hunter 7 | . . . . . . . 1 . . . . . 6 Programmer 19 | . . . . . . . 4 5 2 . . 2 6 Assembled 1 | . . 1 . . . . . . . . . . . Mutant 1 | . . . . . . . . . . 1 . . . Best Kill Streak 9 | . 4 3 . . 3 4 7 7 7 7 3 5 9 Combat Bots Only 9 | . 3 3 . . 3 4 6 6 2 7 3 2 9 Max Kills in Single Turn 2 | . 1 1 . . 1 1 2 2 2 1 1 2 2 Gunslinging 1 | . . . . . . . . 1 . . . . . Exploded 2 | . . . . . . . . . . 1 . . 2 Melee 1 | . . . . . . . . . . . . . 1 Uniques/NPCs Destroyed . | . . . . . . . . . . . . . . Combat | -11 -10 -10 -10 -9 -8 -8 -7 -6 -5 -5 -5 -4 -4 -------- Run | Scr Mat Min Exi Min Mat Sto Fac Fac Fac Upp Upp Fac Arm Damage Taken 16554 | . 377 412 . . 298 1025 941 1719 336 713 61 841 9831 Core 1754 | . 63 110 . . 37 72 52 143 15 80 . 41 1141 Absorbed by Shields 385 | . . . . . . 28 152 . 121 84 . . . Reduced by Siege Mode 508 | . . . . . . . . . . 8 . . 500 Redirected to Shielding 176 | . . . . . . . . . . . . . 176 Regen/Repaired (Parts) 262 | . . . . . . . 262 . . . . . . Core Remaining (%) 79 | 100 . . . 30 . 80 92 83 . . 90 . . Volleys Fired 421 | . 42 25 . . 13 37 36 50 14 21 4 52 127 Largest 4 | . 2 2 . . 3 3 3 3 3 3 3 4 4 Hottest 259 | . 60 46 . . 69 69 139 161 173 156 156 231 259 Shots Fired 963 | . 83 50 . . 39 94 108 146 42 61 12 78 250 Gun 667 | . 83 50 . . 39 87 36 114 28 38 8 27 157 Cannon 263 | . . . . . . 7 72 32 14 21 4 41 72 Launcher 33 | . . . . . . . . . . 2 . 10 21 Special . | . . . . . . . . . . . . . . Kinetic 598 | . 52 50 . . 39 87 68 75 23 40 8 50 106 Thermal 321 | . 31 . . . . 7 40 71 19 19 4 17 113 Explosive 27 | . . . . . . . . . . 2 . 10 15 Electromagnetic 17 | . . . . . . . . . . . . 1 16 Robot Hit Streak 43 | . 17 8 . . 23 43 18 19 10 32 35 7 20 Robot Miss Streak 6 | . 3 4 . . 1 2 3 6 2 1 1 3 2 Penetration Max 1 | . . . . . . . 1 . . . 1 1 . Secondary Targets 8 | . . 2 . . . 1 . 2 . . . . 3 Max Gunslinging Chain 1 | . . 1 . . . 1 . 1 . . . . 1 Shots Hit Robots 695 | . 61 35 . . 28 82 70 129 34 39 5 19 193 Core Hits 365 | . 21 10 . . 14 36 33 116 14 17 4 6 94 Critical Kills 2 | . . . . . . . . . . . . . 2 Critical Parts Destroyed 12 | . . . . . . 2 . 5 1 . . . 4 Critical Strikes 34 | . . . . . . 2 2 10 4 . . 1 15 Burn 9 | . . . . . . . . 4 2 . . . 3 Meltdown 1 | . . . . . . . . . . . . . 1 Destroy 3 | . . . . . . 1 . . 1 . . . 1 Blast 7 | . . . . . . . 2 1 1 . . 1 2 Corrupt 1 | . . . . . . . . . . . . . 1 Smash 11 | . . . . . . 1 . 5 . . . . 5 Sever 2 | . . . . . . . . . . . . . 2 Melee Attacks 84 | . . . . . . 16 8 22 6 1 . 6 25 Impact 64 | . . . . . . 13 6 22 1 1 . 6 15 Slashing 20 | . . . . . . 3 2 . 5 . . . 10 Piercing . | . . . . . . . . . . . . . . Sneak Attacks 22 | . . . . . . 4 2 12 3 . . 1 . Combat Hostiles . | . . . . . . . . . . . . . . Follow-up Attacks . | . . . . . . . . . . . . . . Damage Inflicted 19295 | . 738 567 . . 423 1584 2136 4171 1002 986 124 708 6856 Guns 9580 | . 738 567 . . 423 1045 455 1966 422 607 124 360 2873 Cannons 4855 | . . . . . . 131 1555 690 375 289 . 227 1588 Explosions 1932 | . . . . . . . . 72 . 90 . . 1770 Melee 2871 | . . . . . . 408 126 1429 189 . . 121 598 Ramming 57 | . . . . . . . . 14 16 . . . 27 Kinetic 8204 | . 479 567 . . 423 1045 1027 1397 500 600 43 383 1740 Thermal 6123 | . 259 . . . . 131 983 1331 297 296 81 204 2541 Explosive 1554 | . . . . . . . . . . 90 . . 1464 Electromagnetic 486 | . . . . . . . . . . . . . 486 Impact 2224 | . . . . . . 283 . 1429 . . . 121 391 Slashing 647 | . . . . . . 125 126 . 189 . . . 207 Piercing . | . . . . . . . . . . . . . . Highest Corruption 38 | . 2 2 2 2 . 8 3 3 2 2 . 7 38 Average Corruption 5 | . 2 2 2 2 . 7 1 1 2 1 . 3 17 Corruption Purged 5 | . . . . . . . . . . 2 . . 3 Corruption Blocked . | . . . . . . . . . . . . . . Effects 180 | . 6 8 4 5 . 19 10 18 3 3 . 7 97 Message Errors 48 | . 3 4 1 1 . 4 2 7 1 1 . 4 20 Matter Fused 36 | . 1 . 2 3 . 6 1 6 . . . . 17 Heat Flow Errors 19 | . . 2 1 . . 2 1 1 1 . . . 11 Energy Discharges 18 | . 1 . . 1 . 2 2 1 1 . . 2 8 Parts Rejected 1 | . . . . . . . 1 . . . . . . Data Loss (minor) 19 | . . 2 . . . 2 1 1 . . . . 13 Data Loss (major) 2 | . . . . . . 1 . . . . . . 1 Misfires 13 | . . . . . . 2 1 1 . 2 . . 7 Alerts 4 | . . . . . . . 1 1 . . . 1 1 Misdirections 13 | . . . . . . . . . . . . . 13 Weapon Failures 7 | . 1 . . . . . . . . . . . 6 Overload Shots 2 | . . . . . . . . 2 . . . . . Overflow Damage 1671 | . . . . . . 142 60 1095 . 3 . 82 289 Projectiles 172 | . . . . . . . 60 . . 3 . 31 78 Explosions 71 | . . . . . . . . 52 . . . . 19 Melee 1428 | . . . . . . 142 . 1043 . . . 51 192 Knockbacks 34 | . . . . . . 1 8 8 3 . . 3 11 Impact 8 | . . . . . . 1 . 6 . . . 1 . Kinetic 24 | . . . . . . . 8 1 2 . . 2 11 Secondary 2 | . . . . . . . . 1 1 . . . . Self-Inflicted Damage 334 | . . . . . . . . 222 . . . . 112 Shots 5 | . . . . . . . . 3 . . . . 2 Rammed 14 | . . . . . . 1 . 2 1 . . . 10 Targets Rammed 14 | . . . . . . 1 . 2 1 . . . 10 Kicked . | . . . . . . . . . . . . . . Crushed . | . . . . . . . . . . . . . . Highest Temperature 441 | . 199 270 134 . 2 116 356 156 127 36 54 237 441 Average Temperature 91 | . 50 42 74 . 1 26 138 52 17 11 24 102 127 Received Heat Transfer 2394 | . 186 63 . . 108 445 235 402 36 63 . 72 784 Effects 4 | . . . . . . . 1 . . . . . 3 Shutdowns 2 | . . . . . . . 1 . . . . . 1 Energy Bleed 1 | . . . . . . . . . . . . . 1 Damage (minor) 1 | . . . . . . . . . . . . . 1 Siege Activations 3 | . . . . . . . . . . 1 . . 2 Total Turns 163 | . . . . . . . . . . 20 . . 143 Longest Duration 96 | . . . . . . . . . . 20 . . 96 Robots Corrupted 1 | . . . . . . . . . . . . . 1 Combat Hostiles 1 | . . . . . . . . . . . . . 1 Parts Fried 21 | . . . . . . 2 . 13 . . . 1 5 Impact Corruptions 34 | . . . . . . 2 . 25 . . . 1 6 Robots Melted 2 | . . . . . . . . 1 . . . . 1 Combat Hostiles 2 | . . . . . . . . 1 . . . . 1 Parts Melted 25 | . . . . . . 1 1 7 1 1 1 2 11 Heat Transferred 9994 | . 550 . . . . 200 1461 2647 703 518 148 296 3471 Parts Sabotaged 5 | . . . . . . . . . . . . . 5 Parts Stolen . | . . . . . . . . . . . . . . Parts Stripped . | . . . . . . . . . . . . . . Power Chain Reactions . | . . . . . . . . . . . . . . Missiles Intercepted . | . . . . . . . . . . . . . . Latent Energy Used 119 | . . . . . . . . . . . . . 119 LE Corruption 3 | . . . . . . . . . . . . . 3 Alert | -11 -10 -10 -10 -9 -8 -8 -7 -6 -5 -5 -5 -4 -4 ------- Run | Scr Mat Min Exi Min Mat Sto Fac Fac Fac Upp Upp Fac Arm Peak Influence 555 | . 144 125 . . 152 243 346 555 263 . . 135 457 Initial 238 | . . 12 . . . 42 42 168 238 . . . 25 Average 116 | . 45 71 . . 62 104 127 265 136 . . 17 124 Maximum Alert Level 2 | . . . . . . 1 1 2 1 . . . 2 Low Security (%) 80 | . 100 100 . 100 100 96 78 40 58 . . 100 82 Level 1 15 | . . . . . . 3 21 39 41 . . . 13 Level 2 3 | . . . . . . . . 20 . . . . 4 Level 3 . | . . . . . . . . . . . . . . Level 4 . | . . . . . . . . . . . . . . Level 5 . | . . . . . . . . . . . . . . High Security . | . . . . . . . . . . . . . . Max Security . | . . . . . . . . . . . . . . Squads Dispatched 32 | . 1 . . . 1 2 10 7 2 . . 3 6 Investigation 5 | . . . . . 1 1 3 . . . . . . Extermination 14 | . . . . . . . 3 4 1 . . 2 4 Reinforcement 7 | . 1 . . . . 1 1 . 1 . . 1 2 Assault . | . . . . . . . . . . . . . . Garrison 6 | . . . . . . . 3 3 . . . . . Intercept . | . . . . . . . . . . . . . . Searches Triggered . | . . . . . . . . . . . . . . Construction Impeded 2 | . . . . . . . . . 1 . . 1 . Haulers Reinforced . | . . . . . . . . . . . . . . Active Scanning Responses . | . . . . . . . . . . . . . . Cargo Convoy Interrupts . | . . . . . . . . . . . . . . Stealth | -11 -10 -10 -10 -9 -8 -8 -7 -6 -5 -5 -5 -4 -4 --------- Run | Scr Mat Min Exi Min Mat Sto Fac Fac Fac Upp Upp Fac Arm Distress Signals 15 | . 2 . . . 1 . 6 3 . . . . 3 Communications Jammed . | . . . . . . . . . . . . . . Distress Signals . | . . . . . . . . . . . . . . Times Spotted 241 | . 19 25 . . 9 16 37 35 3 11 5 5 76 Peak Tracking Total 15 | . 4 14 . . 4 5 5 5 2 4 4 4 15 Tactical Retreats 11 | . 1 1 . . 1 . . 1 . . 1 . 6 Traps | -11 -10 -10 -10 -9 -8 -8 -7 -6 -5 -5 -5 -4 -4 ------- Run | Scr Mat Min Exi Min Mat Sto Fac Fac Fac Upp Upp Fac Arm Traps Triggered 8 | . 3 . . . . 1 1 1 1 . . . 1 Indirectly 1 | . . . . . . . . . . . . . 1 Trap Hack Attempts . | . . . . . . . . . . . . . . Triggered . | . . . . . . . . . . . . . . Disarmed . | . . . . . . . . . . . . . . Reprogrammed 4 | . . . . . 4 . . . . . . . . Reused . | . . . . . . . . . . . . . . Traps Extracted . | . . . . . . . . . . . . . . Installed . | . . . . . . . . . . . . . . Triggered . | . . . . . . . . . . . . . . Machines | -11 -10 -10 -10 -9 -8 -8 -7 -6 -5 -5 -5 -4 -4 ---------- Run | Scr Mat Min Exi Min Mat Sto Fac Fac Fac Upp Upp Fac Arm Machines Disabled 20 | . . . . . . 2 2 4 . 1 . 2 9 Max in Single Turn 4 | . . . . . . 1 1 4 . 1 . 1 4 Garrison Access 1 | . . . . . . 1 . . . . . . . Machines Sabotaged . | . . . . . . . . . . . . . . Garrisons Compromised . | . . . . . . . . . . . . . . Overloaded Fab Kills . | . . . . . . . . . . . . . . Hacking | -11 -10 -10 -10 -9 -8 -8 -7 -6 -5 -5 -5 -4 -4 --------- Run | Scr Mat Min Exi Min Mat Sto Fac Fac Fac Upp Upp Fac Arm Machines Accessed 36 | . 5 . 1 . 2 9 5 4 4 1 . . 5 Terminals 24 | . 5 . . . 2 8 3 2 2 . . . 2 Fabricators 2 | . . . . . . . . . . . . . 2 Repair Stations 4 | . . . . . . . 1 1 1 . . . 1 Recycling Units 1 | . . . . . . . . . 1 . . . . Scanalyzers . | . . . . . . . . . . . . . . Garrison Access 3 | . . . . . . 1 1 1 . . . . . Total Hacks 95 | . 14 . 1 . 6 19 11 8 8 8 . . 20 Successful 47 | . 7 . 1 . 3 12 4 2 2 8 . . 8 Failed 47 | . 6 . . . 3 7 7 6 6 . . . 12 Catastrophic 10 | . . . . . 1 . 2 5 1 . . . 1 Database Lockouts 1 | . 1 . . . . . . . . . . . . Manual 16 | . 6 . 1 . . 6 . 1 . . . . 2 Terminals 65 | . 14 . . . 6 17 7 4 4 . . . 13 Fabricators 4 | . . . . . . . . . . . . . 4 Repair Stations 9 | . . . . . . . 2 2 2 . . . 3 Recycling Units 2 | . . . . . . . . . 2 . . . . Scanalyzers . | . . . . . . . . . . . . . . Garrison Access 6 | . . . . . . 2 2 2 . . . . . Terminal Hacks 40 | . 7 . 1 . 3 11 2 1 1 8 . . 6 Record 8 | . . . . . . . . . . 8 . . . Part Schematic 1 | . . . . . . . 1 . . . . . . Robot Analysis 6 | . 3 . . . . 3 . . . . . . . Prototype ID Bank 1 | . . . . . . . 1 . . . . . . Open Door 3 | . . . . . . 3 . . . . . . . Level Access Points 1 | . . . . . . . . . 1 . . . . Alert Level 3 | . 1 . . . . 1 . . . . . . 1 Unreport Threat 3 | . . . . . . . . . . . . . 3 Locate Traps 2 | . 1 . . . 1 . . . . . . . . Reprogram Traps 1 | . . . . . 1 . . . . . . . . Hauler Manifests 3 | . 1 . . . . 1 . . . . . . 1 Registered Components 1 | . 1 . . . . . . . . . . . . Zone Layout 6 | . . . . . 1 3 . 1 . . . . 1 EX-Prototype ID Bank 1 | . . . 1 . . . . . . . . . . Fabricator Hacks 1 | . . . . . . . . . . . . . 1 Network Status 1 | . . . . . . . . . . . . . 1 Repair Station Hacks 5 | . . . . . . . 2 1 1 . . . 1 Scan Component 3 | . . . . . . . 1 1 1 . . . . Repair 1 | . . . . . . . 1 . . . . . . Refit 1 | . . . . . . . . . . . . . 1 Recycling Unit Hacks . | . . . . . . . . . . . . . . Scanalyzer . | . . . . . . . . . . . . . . Garrison Access Hacks 1 | . . . . . . 1 . . . . . . . Seal Access 1 | . . . . . . 1 . . . . . . . Unauthorized Hacks . | . . . . . . . . . . . . . . Terminals . | . . . . . . . . . . . . . . Fabricators . | . . . . . . . . . . . . . . Repair Stations . | . . . . . . . . . . . . . . Recycling Units . | . . . . . . . . . . . . . . Scanalyzers . | . . . . . . . . . . . . . . Garrison Access . | . . . . . . . . . . . . . . Data Cores Recovered . | . . . . . . . . . . . . . . Used . | . . . . . . . . . . . . . . Hacking Detections 28 | . 3 . . . 2 6 4 4 4 . . . 5 Full Trace Events 3 | . . . . . 1 1 1 . . . . . . Feedback Events . | . . . . . . . . . . . . . . Feedback Blocked . | . . . . . . . . . . . . . . Robot Schematics Acquired . | . . . . . . . . . . . . . . Robots Built . | . . . . . . . . . . . . . . Authchips . | . . . . . . . . . . . . . . Time . | . . . . . . . . . . . . . . Total Robot Build Rating . | . . . . . . . . . . . . . . Part Schematics Acquired 1 | . . . . . . . 1 . . . . . . Parts Built . | . . . . . . . . . . . . . . Authchips . | . . . . . . . . . . . . . . Time . | . . . . . . . . . . . . . . Total Part Build Rating . | . . . . . . . . . . . . . . Parts Repaired 1 | . . . . . . . 1 . . . . . . Time 38 | . . . . . . . 38 . . . . . . Parts Recycled . | . . . . . . . . . . . . . . Recycled Matter . | . . . . . . . . . . . . . . Retrieved Matter . | . . . . . . . . . . . . . . Retrieved Components . | . . . . . . . . . . . . . . Parts Scanalyzed . | . . . . . . . . . . . . . . Part Schematics Acquired . | . . . . . . . . . . . . . . Parts Damaged . | . . . . . . . . . . . . . . Bothacking | -11 -10 -10 -10 -9 -8 -8 -7 -6 -5 -5 -5 -4 -4 ------------ Run | Scr Mat Min Exi Min Mat Sto Fac Fac Fac Upp Upp Fac Arm Used RIF Installer . | . . . . . . . . . . . . . . Robots Hacked . | . . . . . . . . . . . . . . Non-combat . | . . . . . . . . . . . . . . Combat . | . . . . . . . . . . . . . . Robot Hacks Applied . | . . . . . . . . . . . . . . Relay Couplers Released 3 | . . . . . . . 3 . . . . . . Programmers 3 | . . . . . . . 3 . . . . . . Fabnet Peak Effective % . | . . . . . . . . . . . . . . Robots Rewired 1 | . . . . . . . 1 . . . . . . Allies Hacked 1 | . . . . . . . 1 . . . . . . Hacks Repelled . | . . . . . . . . . . . . . . Allies | -11 -10 -10 -10 -9 -8 -8 -7 -6 -5 -5 -5 -4 -4 -------- Run | Scr Mat Min Exi Min Mat Sto Fac Fac Fac Upp Upp Fac Arm Total Allies 14 | . . . . 3 . 10 1 . . . . . . Largest Group 10 | . . . . 3 3 10 10 . . . . . . Highest-Rated Group 173 | . . . . 40 40 173 173 . . . . . . Highest-Rated Ally 32 | . . . . 16 16 29 32 . . . . . . Total Orders 6 | . . . . . . . . 1 1 3 1 . . EXPLORE 5 | . . . . . . . . 1 1 2 1 . . RETURN 1 | . . . . . . . . . . 1 . . . Ally Attacks 122 | . . . . . 18 . 104 . . . . . . Total Damage 1331 | . . . . . 171 . 1160 . . . . . . Kills 14 | . . . . . 2 . 12 . . . . . . Allies Corrupted . | . . . . . . . . . . . . . . Allies Melted . | . . . . . . . . . . . . . . Intel | -11 -10 -10 -10 -9 -8 -8 -7 -6 -5 -5 -5 -4 -4 ------- Run | Scr Mat Min Exi Min Mat Sto Fac Fac Fac Upp Upp Fac Arm Robot Analysis Total 6 | . 3 . . . . 3 . . . . . . . Derelict Logs Recovered 5 | . . 1 . 1 . . . . . 3 . . . Drone Launches 7 | . . . . . . . . 1 1 2 1 . 2 Drone Recoveries 1 | . . . . . . . . . . 1 . . . Exploration | -11 -10 -10 -10 -9 -8 -8 -7 -6 -5 -5 -5 -4 -4 ------------- Run | Scr Mat Min Exi Min Mat Sto Fac Fac Fac Upp Upp Fac Arm Turns Passed 14385 | . 1526 607 341 654 447 1324 2203 1911 961 1104 543 873 1891 Spaces Moved 7037 | 1 933 340 220 418 196 515 1131 792 437 695 189 401 769 Core 218 | . . . . . . . . . . . . . 218 Treads 2624 | . 127 . . . . 83 163 792 217 237 189 401 415 Legs 317 | 1 198 . . . . . . . . . . . 118 Wheels 3860 | . 608 340 220 418 196 432 968 . 220 458 . . . Hover . | . . . . . . . . . . . . . . Flight 18 | . . . . . . . . . . . . . 18 Fastest Speed 22 | 120 105 140 155 155 155 145 160 162 108 108 163 162 22 Average Speed 156 | 120 140 153 155 155 169 177 165 168 167 134 163 162 145 Slowest Speed 330 | 120 240 155 155 155 170 250 243 242 240 163 163 163 330 Overloaded Moves 15 | . . . . . . . . . . . . . 15 Propulsion Burnouts . | . . . . . . . . . . . . . . Robots Hopped 3 | . . . . . . . . . . . . . 3 Cave-ins Triggered 1 | . . . . . . . . . . . . 1 . Exploration Rate (%) 43 | 2 99 55 62 99 16 60 29 18 15 74 13 8 53 Regions Visited 13 Branch Regions 7 Pre-discovered Areas 1 | . . . . 1 . . . . . . . . . Known Exits Taken 2 | . . . . . . . . . . . 1 1 . Unknown Exits Taken 11 | 1 1 1 1 1 1 1 1 1 1 1 . . . Scrap Searched 9 | . . . . 4 . . . . . 5 . . . Spaces Dug 36 | . . . . . . 5 6 7 3 . . 7 8 Terrain Destroyed 424 | . . . . . . 7 20 56 5 9 2 216 109 Melee 34 | . . . . . . 5 6 7 3 . . 5 8 Projectile 80 | . . . . . . 2 14 8 2 8 2 31 13 AOE 310 | . . . . . . . . 41 . 1 . 180 88 Terrain Rammed . | . . . . . . . . . . . . . . Walls Destroyed . | . . . . . . . . . . . . . . Machines Disabled . | . . . . . . . . . . . . . . Actions | -11 -10 -10 -10 -9 -8 -8 -7 -6 -5 -5 -5 -4 -4 --------- Run | Scr Mat Min Exi Min Mat Sto Fac Fac Fac Upp Upp Fac Arm Total 9474 | . 1077 385 220 427 286 826 1381 1204 625 815 414 550 1264 Wait 1489 | . 60 14 . 2 67 215 138 285 147 60 220 59 222 Move 7018 | . 932 339 219 417 195 514 1130 791 436 694 188 399 764 Hop 2 | . . . . . . . . . . . . . 2 Pick Up 88 | . 17 3 1 5 2 7 14 5 4 5 . 9 16 Fast Attach 68 | . 4 1 . . 1 3 6 6 5 3 . 2 37 Attach 64 | . 4 1 . . 3 8 4 7 2 3 . 1 31 Detach 18 | . 1 . . . . 2 2 3 1 2 . . 7 Swap 99 | . 7 . . 1 3 12 14 23 2 14 2 9 12 Drop 93 | . 10 2 . 2 2 9 18 10 5 12 . 12 11 Fire 421 | . 42 25 . . 13 37 36 50 14 21 4 52 127 Melee 84 | . . . . . . 16 8 22 6 1 . 6 25 Ram . | . . . . . . . . . . . . . . Kick . | . . . . . . . . . . . . . . Crush 14 | . . . . . . 1 . 2 1 . . . 10 Escape Stasis 3 | . . . . . . . . . 2 . . 1 . Rewire 13 | . . . . . . 2 11 . . . . . . Trap . | . . . . . . . . . . . . . . Miscellaneous . | . . . . . . . . . . . . . . Route ------- -11/Scrapyard -10/Materials (discovered 5 exits: [*Mat x3] / [*Min x2]) -10/Mines -10/Exiles -9/Mines (discovered 2 exits: *Mat x2) -8/Materials -8/Storage -7/Factory -6/Factory -5/Factory (discovered 5 exits: *Fac x4 / *Upp) -5/Upper Caves -5/Upper Caves -4/Factory (discovered 4 exits: Res x2 / Ext / *Arm) -4/Armory History --------- Turn | Location | Event 1 | -11/Scrapyard | Discovered new exit (range 0) 1 | -11/Scrapyard | Entered Materials 139 | -10/Materials | Central database locked down 159 | -10/Materials | Discovered new exit (range 8) 328 | -10/Materials | Build established: Mutant 417 | -10/Materials | Discovered new exit (range 10) 938 | -10/Materials | Discovered new exit (range 16) 1216 | -10/Materials | Discovered new exit (range 11) 1375 | -10/Materials | Discovered new exit (range 13) 1527 | -10/Materials | Entered Mines 1870 | -10/Mines | Learned 2 Materials zone layouts 1927 | -10/Mines | Assembled infested the area 1932 | -10/Mines | Assisted by a Guerilla fighting off Assembled 1960 | -10/Mines | Core integrity fell below 50% 2126 | -10/Mines | Deemed a non-threat by the Exiles lab entrance 2128 | -10/Mines | Discovered new exit (range 5) 2134 | -10/Mines | Entered Exiles 2176 | -10/Exiles | Met 8R-AWN 2200 | -10/Exiles | Met EX-HEX 2241 | -10/Exiles | Met EX-BIN 2263 | -10/Exiles | Aligned with FarCom system 2265 | -10/Exiles | Given EX-Vault access code 2305 | -10/Exiles | Opened EX-Vault 2314 | -10/Exiles | Found Latent Energy Streamer 2348 | -10/Exiles | Warned to stay clear of 0b10 Research branches 2402 | -10/Exiles | Met EX-DEC 2458 | -10/Exiles | Discovered new exit (range 14) 2475 | -10/Exiles | Left Exiles lab with Latent Energy Streamer 2475 | -10/Exiles | Entered Mines 2548 | -9/Mines | Discovered new exit (range 9) 2646 | -9/Mines | Received a Rocket Launcher from a helpful Derelict 2758 | -9/Mines | A weapon hastily lodged in a ceiling crevice suddenly fell to the ground 2831 | -9/Mines | Learned location of Zion (-7) 2940 | -9/Mines | Discovered new exit (range 8) 3078 | -9/Mines | Assisted by bots powering up and referring to "LRC-V3" 3129 | -9/Mines | Entered Materials 3129 | -8/Materials | Accompanied by 3 allies 3129 | -8/Materials | Evolved 4 slots: Propulsion x1, Utility x2, Weapon x1 3477 | -8/Materials | Build established: Skirmisher 3483 | -8/Materials | Discovered new exit (range 16) 3576 | -8/Materials | Entered Storage 4230 | -8/Storage | Build established: Scavenger-Mutant 4335 | -8/Storage | Lost 3 parts (1n2u) 4405 | -8/Storage | Lost 3 parts (2n1w) 4633 | -8/Storage | Discovered new exit (range 13) 4752 | -8/Storage | Build established: Mutant 4887 | -8/Storage | Assisted by bots powering up and referring to "LRC-V3" 4900 | -8/Storage | Entered Factory 4900 | -7/Factory | Accompanied by 10 allies 4900 | -7/Factory | Evolved 2 slots: Propulsion x1, Utility x1 5201 | -7/Factory | Build established: Commander-Mutant 5258 | -7/Factory | Discovered new exit (range 6) 5766 | -7/Factory | Build established: Commander-Tank 6113 | -7/Factory | Build established: Tank 6465 | -7/Factory | Repaired Arm. Treads 6504 | -7/Factory | Garrison activated, responded to threat 7103 | -7/Factory | Entered another Factory area 7103 | -6/Factory | Evolved 2 slots: Utility x2 7105 | -6/Factory | Build established: Skirmisher 7447 | -6/Factory | Garrison activated, responded to threat 8118 | -6/Factory | Build established: Mutant 8781 | -6/Factory | Discovered new exit (range 16) 8896 | -6/Factory | Build established: Gunner 9014 | -6/Factory | Entered another Factory area 9014 | -5/Factory | Evolved 2 slots: Propulsion x1, Utility x1 9175 | -5/Factory | Identified exit to Factory 9245 | -5/Factory | Build established: Mutant 9422 | -5/Factory | Lost 3 parts (3n) 9659 | -5/Factory | Build established: Gunner 9845 | -5/Factory | Discovered new exit (range 7) 9975 | -5/Factory | Entered Upper Caves 10184 | -5/Upper Caves | Build established: Mutant 10271 | -5/Upper Caves | Learned 12 Factory zone layouts 10388 | -5/Upper Caves | Learned 8 Factory zone layouts 10388 | -5/Upper Caves | Learned Factory trap positions 10388 | -5/Upper Caves | Learned Research trap positions 10514 | -5/Upper Caves | Learned Factory trap positions 10571 | -5/Upper Caves | Learned Factory security intel 10609 | -5/Upper Caves | Build established: Scavenger-Gunner 10680 | -5/Upper Caves | Attracted the attention of an 0b10 checkpoint 10723 | -5/Upper Caves | Destroyed 7 combat bots 10805 | -5/Upper Caves | Attacked by a delusional Derelict stockpiling parts 10993 | -5/Upper Caves | Discovered new exit (range 13) 11079 | -5/Upper Caves | Entered another Upper Caves area 11114 | -5/Upper Caves | Spotted B-75 Beast 11176 | -5/Upper Caves | Build established: Scavenger-Tank 11179 | -5/Upper Caves | Discovered exit to Factory (range 6) 11552 | -5/Upper Caves | Build established: Scavenger-Skirmisher 11622 | -5/Upper Caves | Entered Factory 11622 | -4/Factory | Evolved 2 slots: Propulsion x1, Weapon x1 11623 | -4/Factory | Identified exit to Extension 11623 | -4/Factory | Identified exit to Research 11623 | -4/Factory | Identified exit to Armory 11624 | -4/Factory | Loaded intel: 77 trap records 12429 | -4/Factory | Crushed by falling debris 12495 | -4/Factory | Entered Armory 12813 | -4/Armory | Destroyed 9 combat bots 12878 | -4/Armory | Lost 14 parts (4n5u5w) 12912 | -4/Armory | System corruption reached 10% 13426 | -4/Armory | Lost 3 parts (2n1u) 13623 | -4/Armory | Lost 3 parts (1n2u) 13635 | -4/Armory | Destroyed 9 combat bots 13703 | -4/Armory | Lost 6 parts (2n2u2w) 13806 | -4/Armory | Core integrity fell below 50% 13862 | -4/Armory | System corruption reached 30% 13872 | -4/Armory | Lost 14 parts (3p7n4w) 14128 | -4/Armory | Released all parts (9) 14146 | -4/Armory | Found Prototype Device 14146 | -4/Armory | Identified Adv. EM Disruption Field 14304 | -4/Armory | Released all parts (8) 14323 | -4/Armory | Spotted B-86 Titan 14351 | -4/Armory | Core integrity fell below 20% 14386 | -4/Armory | Destroyed by D-63 Destroyer with Heavy Rocket Launcher Last Messages --------------- 14326_ E-15 Imp destroyed. 14327_ System corrupted: Energy discharge (-21). 14327_ E-15 Imp destroyed. 14330_ Terminal disabled. 14346_ Connecting with Repair Station... >>Refit Scanning configuration... Attaching: Backup Power III x1 Backup Laser III x2 14349_ Dropped Backup Power III. 14349_ Dropped Backup Laser III. 14363_ Biometal Heavy Treads destroyed. 14364_ System corrupted: Energy discharge (-5). 14373_ Acquired Spear. 14378_ Transfer Shaft disabled. 14379_ ,GCIZ ITT:|LOEDHIOR58DQ5O 14380_ Acquired Adv. Surge Thruster. 14381_ Dropped Adv. Heavy Siege Treads. 14383_ Transfer Shaft disabled. Map ----- +----------------------------------------------------+ | | | | | | | | | | | | | | | | | | | | | | | | | | | | | | | | | | | | | | | | | ?????????????????????????????????????????????????? | | ???????????????????????????????###############???? | | ???????????????????????????????# """ """ """ #???? | | ???????????????????????????????# """ "" """ #???? | | ?????????????????############### " " """ #???? | | ???????????+ @ gg b #???# | | ?????????????????# ####### p #???# | | ?????????????????# ??????# g p = #???# | | ?????????????????# g ???????##########/####??## | | ?????????????????#dg ##????????????????# #?????# | | ?????????????????# ??????????????????# #?????#[ | | ?????????????????# ???????????????????# #?????# | | ?????????????????# ????????????????????# #?????# | | ?????????????????# ?????????????????????# ####### | | ?????????????????#??????????????????????# / | | ????????????????????????????????????????######### | | ????????????????????????????????????????????????# | | ????????????????????????????????????????????????# | | ????????????????????????????????????????????????# | | ????????????????????????????????????????????????## | | ?????????????????????????????????????????????????? | | ?????????????????????????????????????????????????? | | ?????????????????????????????????????????????????? | | ?????????????????????????????????????????????????? | | ?????????????????????????????????????????????????? | | ?????????????????????????????????????????????????? | | ?????????????????????????????????????????????????? | | ?????????????????????????????????????????????????? | | ?????????????????????????????????????????????????? | | ?????????????????????????????????????????????????? | +----------------------------------------------------+ Best States ------------- Heat Dissipation 98 Energy Generation 25 Energy Capacity 515 Matter Stores 550 Matter Capacity 550 Sight Range 16 Terrain Scan Range 16 Terrain Scan Density 10 Jamming Range 14 Power Amplification 20 Armor Coverage 1200 Resistance: KI 20 Core Shielding 30 Weapon Shielding 90 Phase Shifting 10 Evasion (%) 55 Targeting Accuracy 8 Target Analysis 6 Core Analysis 6 Recoil Reduction 6 Offensive Hacking 10 Item Schematics ----------------- Gauss Cannon | -7/Factory | Hacked Robot Schematics ------------------ None Fabricated ------------ Nothing Alien Tech Used ----------------- None Achievements -------------- None Challenges ------------ None Game ------ Seed DisruptionDefenseLauncher Manual? 0 Play Time 02:03:39 Cumulative 265.2 hours Start 2022.05.26 @ 16:55:05 End 2022.05.27 @ 10:38:32 Sessions 3 Manual Loads 0 Difficulty Rogue Special Mode None Game No. 352 Rogue 352 Adventurer 0 Explorer 0 Win Type - Total 5 Types 4/0/0/1/0/0/0/0/0 Lore% 67 Gallery% 79 Achievement% 57 Wizard Run 0 Options --------- ASCII 0 Keyboard 1 Movement Vi Keybinds 0 Fullscreen 1 Font 18/SmallcapsGlow Map View 76x50 Tactical HUD 1 Map Filters NONE Filters NONE Steam 1 RUN: 25d72ce8-b72d-4b7a-96fc-b92e2c243dca